[Event "CZE-ch U14 Open 2023"]
[Site "Teplice"]
[Date "2023.03.14"]
[Round "5.4"]
[White "Ocelak, David"]
[Black "Krautschneider, Daniel Jan"]
[Result "1-0"]
[ECO "B31"]
[WhiteElo "1608"]
[BlackElo "1679"]
[Annotator "NA RC COMBH"]
[PlyCount "65"]
[EventDate "2023.03.09"]
[EventType "swiss"]
[EventCountry "CZE"]
[SourceTitle "playchess.com"]
[Source "ChessBase"]
[SourceQuality "1"]
[TimeControl "40/5400+30:1800+30"]

1. e4 {[%emt 0:00:06]} c5 {[%emt 0:00:06]} 2. Nf3 {[%emt 0:00:09]} Nc6 {[%emt 0:00:12]} 3. Bb5 {[%emt 0:00:15]} g6 {[%emt 0:00:16]} 4. O-O {[%emt 0:00:16]} Bg7 {[%emt 0:00:05]} 5. Re1 {[%emt 0:00:12]} Nf6 {[%emt 0:00:39]} 6. c3 {[%emt 0:00:23]} d5 {[%emt 0:01:32]} 7. e5 {[%emt 0:01:13]} Ng4 {[%emt 0:00:41]} 8. d4 {[%emt 0:01:31]} O-O {[%emt 0:00:11]} 9. h3 {[%emt 0:11:43]} Nh6 {[%emt 0:00:49]} 10. Bd2 {[%emt 0:01:05]} Qb6 {[%emt 0:01:05]} 11. Bxc6 {[%emt 0:06:26]} bxc6 {[%emt 0:00:17]} 12. Qc1 {[%emt 0:00:08]} Nf5 {[%emt 0:11:32]} 13. g4 {[%emt 0:02:02]} Nxd4 {[%emt 0:01:51]} 14. cxd4 {[%emt 0:00:17]} cxd4 {[%emt 0:00:08]} 15. Na3 {[%emt 0:10:03]} c5 {[%emt 0:06:47]} 16. Bh6 {[%emt 0:02:47]} Ba6 {[%emt 0:03:08]} 17. Bxg7 {[%emt 0:13:13]} Kxg7 {[%emt 0:00:11]} 18. Qd2 {[%emt 0:00:16]} Rac8 {[%emt 0:01:20]} 19. Rac1 {[%emt 0:01:52]} h6 {[%emt 0:03:57]} 20. h4 {[%emt 0:04:30]} d3 {[%emt 0:05:26]} 21. b3 {[%emt 0:04:49]} c4 {[%emt 0:08:17]} 22. bxc4 {[%emt 0:00:46]} dxc4 {[%emt 0:00:24]} 23. Rc3 {[%emt 0:01:08]} Rfd8 {[%emt 0:05:32]} 24. e6 {[%emt 0:10:04]} f6 {[%emt 0:03:36]} 25. g5 {[%emt 0:08:10]} hxg5 {[%emt 0:01:19]} 26. hxg5 {[%emt 0:01:24]} f5 {[%emt 0:05:55]} 27. Qf4 {[%emt 0:01:59]} Rd5 {[%emt 0:18:33]} 28. Nxc4 {[%emt 0:09:06]} Qb4 {[%emt 0:09:51]} 29. Rec1 {[%emt 0:00:33]} Rcd8 {[%emt 0:07:22]} 30. Qd2 {[%emt 0:03:15]} Rh8 {[%emt 0:03:51]} 31. Rb3 {[%emt 0:01:26]} Qa4 {[%emt 0:00:36]} 32. Qc3+ {[%emt 0:00:36]} Kh7 {[%emt 0:00:12]} 33. Kg2 {[%emt 0:00:13]} 1-0

[Event "CZE-ch U14 Open 2023"]
[Site "Teplice"]
[Date "2023.03.14"]
[Round "5.5"]
[White "Jasso, Matej"]
[Black "Andrle, Filip"]
[Result "1-0"]
[ECO "B56"]
[WhiteElo "1934"]
[BlackElo "1721"]
[Annotator "TA"]
[PlyCount "47"]
[EventDate "2023.03.09"]
[EventType "swiss"]
[EventCountry "CZE"]
[SourceTitle "playchess.com"]
[Source "ChessBase"]
[SourceQuality "1"]
[TimeControl "40/5400+30:1800+30"]

{[%evp 15,47,23,28,22,41,-47,64,73,72,19,99,87,104,85,96,70,109,107,288,280,612,346,941,913,912,899,1172,1157,2169,1933,29993,29988,29994,29995]} 1. e4 {[%emt 0:00:08]} c5 {[%emt 0:00:09]} 2. Nf3 {[%emt 0:00:05]} Nc6 {[%emt 0:00:22]} 3. d4 {[%emt 0:00:06]} cxd4 {[%emt 0:00:07]} 4. Nxd4 {[%emt 0:00:04]} Nf6 {[%emt 0:00:08]} 5. Nc3 {[%emt 0:00:30]} d6 {[%emt 0:00:17]} 6. f3 {[%emt 0:00:24]} e5 {[%emt 0:01:11]} 7. Nb3 {[%emt 0:00:19]} Be6 {[%emt 0:00:48]} 8. Be3 {[%emt 0:00:28]} Be7 {[%emt 0:00:50]} 9. Qe2 {[%emt 0:01:52] B56: Classical Sicilian: Unusual Lines.} a6 {[%emt 0:06:35] [#]} 10. g4 $146 {[%emt 0:03:31]} ({White should try} 10. O-O-O $14) ({Predecessor:} 10. O-O-O O-O 11. Kb1 b5 12. Qd2 Qc8 13. Nd5 Bd8 14. c4 a5 15. Nxf6+ Bxf6 16. cxb5 Nb4 17. Nc1 d5 18. a3 d4 19. axb4 axb4 20. Qxb4 dxe3 {0-1 Demchenko,A (2583)-Korobov,A (2713) Moscow Aeroflot op-A 15th 2016 (6)}) 10... h6 {[%emt 0:03:41]} (10... d5 $1 $15 11. exd5 Nxd5) 11. O-O-O $14 {[%emt 0:01:58] White is slightly better.} Rc8 {[%emt 0:03:47]} 12. Nc5 {[%emt 0:01:35]} (12. h4 $16) 12... Qc7 {[%emt 0:04:38]} (12... Nd7 $11 13. Nxd7 (13. Nxb7 $2 Qc7 $17) 13... Qxd7) 13. Nxe6 $16 {[%emt 0:02:37]} fxe6 {[%emt 0:00:26]} 14. h4 {[%emt 0:14:41]} b5 {[%emt 0:06:19]} 15. Bh3 {[%emt 0:02:52] g5 is the strong threat.} Nd7 {[%emt 0:12:05]} 16. g5 {[%emt 0:05:08] White is more active.} Nc5 {[%emt 0:04:09] [#] This costs Black the game.} (16... Nd4 $16 17. Bxd4 exd4) 17. gxh6 $18 {[%emt 0:17:45]} gxh6 {[%emt 0:08:00]} (17... Rxh6 18. Bxh6 gxh6) 18. f4 {[%emt 0:04:18]} Bf6 $2 {[%emt 0:05:42]} (18... Nd4 19. Qh5+ (19. Bxd4 exd4 20. Rxd4 Bf6 $16) 19... Kd7 20. fxe5 {[%mdl 64] Remove Defender} dxe5 21. Bxd4 exd4 22. Rxd4+ Kc6 23. Bxe6 Bg5+ 24. hxg5 Nxe6) 19. Bxc5 {[%emt 0:01:56]} dxc5 {[%emt 0:01:05]} 20. Bxe6 {[%emt 0:00:12]} h5 {[%emt 0:08:32] Black is weak on the light squares} 21. Nd5 {[%emt 0:01:17]} Qd8 {[%emt 0:01:55]} 22. Qg2 {[%emt 0:01:08] [#] Qg6+ would kill now.} Rc7 {[%emt 0:02:52]} 23. Nxc7+ {[%emt 0:00:06]} Qxc7 {[%emt 0:00:40]} 24. Qg6+ {[%emt 0:00:05] Weighted Error Value: White=0.48/Black=1.22} 1-0

[Event "CZE-ch U14 Open 2023"]
[Site "Teplice"]
[Date "2023.03.14"]
[Round "5.6"]
[White "Topencik, Bruno"]
[Black "Srba, Daniel"]
[Result "1-0"]
[ECO "B20"]
[WhiteElo "1844"]
[BlackElo "1509"]
[Annotator "NA RC COMBH"]
[PlyCount "62"]
[EventDate "2023.03.09"]
[EventType "swiss"]
[EventCountry "CZE"]
[SourceTitle "playchess.com"]
[Source "ChessBase"]
[SourceQuality "1"]
[TimeControl "40/5400+30:1800+30"]

1. e4 c5 {[%emt 0:00:35]} 2. Be2 {[%emt 0:00:07]} g6 {[%emt 0:00:38]} 3. f4 {[%emt 0:00:10]} Nc6 {[%emt 0:01:24]} 4. Nf3 {[%emt 0:00:21]} Bg7 {[%emt 0:01:00]} 5. O-O {[%emt 0:00:21]} d6 {[%emt 0:01:02]} 6. c3 {[%emt 0:00:09]} Nf6 {[%emt 0:02:06]} 7. d3 {[%emt 0:00:06]} O-O {[%emt 0:00:26]} 8. Na3 {[%emt 0:00:10]} Bd7 {[%emt 0:01:00]} 9. Qe1 {[%emt 0:00:19]} Rc8 {[%emt 0:08:54]} 10. Qh4 {[%emt 0:01:07]} Bg4 {[%emt 0:11:07]} 11. h3 {[%emt 0:03:40]} Bxf3 {[%emt 0:04:47]} 12. Rxf3 {[%emt 0:05:53]} e5 {[%emt 0:09:50]} 13. Nc4 {[%emt 0:21:48]} b5 {[%emt 0:04:19]} 14. fxe5 {[%emt 0:04:30]} dxe5 {[%emt 0:07:39]} 15. Na3 {[%emt 0:01:18]} b4 {[%emt 0:04:46]} 16. Nc4 {[%emt 0:00:29]} Nd7 {[%emt 0:01:48]} 17. Bg5 {[%emt 0:03:02]} f6 {[%emt 0:01:33]} 18. Bd2 {[%emt 0:05:04]} Nb6 {[%emt 0:03:43]} 19. Ne3 {[%emt 0:09:05]} a5 {[%emt 0:05:03]} 20. Raf1 {[%emt 0:02:42]} Rc7 {[%emt 0:10:33]} 21. Ng4 {[%emt 0:02:24]} g5 {[%emt 0:04:26]} 22. Qf2 {[%emt 0:08:33]} Nd7 {[%emt 0:02:22]} 23. Bd1 {[%emt 0:02:42]} h5 {[%emt 0:03:46]} 24. Ne3 {[%emt 0:01:50]} Nb6 {[%emt 0:03:28]} 25. Bb3+ {[%emt 0:00:32]} Kh8 {[%emt 0:00:39]} 26. Bd5 {[%emt 0:00:59]} Ne7 {[%emt 0:01:33]} 27. c4 {[%emt 0:00:20]} Rd7 {[%emt 0:00:24]} 28. Qe2 {[%emt 0:03:03]} Rd6 {[%emt 0:01:09]} 29. R3f2 {[%emt 0:01:14]} Bh6 {[%emt 0:01:37]} 30. Qxh5 {[%emt 0:00:45]} Kg7 {[%emt 0:00:08]} 31. Ng4 {[%emt 0:01:04]} Nc6 1-0

[Event "CZE-ch U14 Open 2023"]
[Site "Teplice"]
[Date "2023.03.14"]
[Round "5.7"]
[White "Popov, Roman"]
[Black "Babula, Matej"]
[Result "1/2-1/2"]
[ECO "A40"]
[WhiteElo "2353"]
[BlackElo "1796"]
[Annotator "TA"]
[PlyCount "75"]
[EventDate "2023.03.09"]
[EventType "swiss"]
[EventCountry "CZE"]
[SourceTitle "playchess.com"]
[Source "ChessBase"]
[SourceQuality "1"]
[TimeControl "40/5400+30:1800+30"]

{[%evp 12,75,0,3,31,20,41,20,41,4,39,35,79,25,89,10,15,14,18,12,22,7,11,10,22,16,14,0,18,14,33,25,31,0,0,0,0,0,0,0,0,0,0,0,0,0,0,0,0,0,0,0,0,0,0,0,0,0,0,0,0,0,0,0,0,0]} 1. d4 {[%emt 0:00:20]} Nf6 {[%emt 0:00:07]} 2. c4 {[%emt 0:00:08]} e6 {[%emt 0:00:06]} 3. g3 {[%emt 0:00:15]} d5 {[%emt 0:00:28]} 4. Nf3 {[%emt 0:00:19]} Bb4+ {[%emt 0:00:42]} 5. Bd2 {[%emt 0:01:50]} a5 {[%emt 0:00:42]} 6. Qc2 {[%emt 0:07:29]} O-O {[%emt 0:01:23]} 7. Bg2 {[%emt 0:01:17]} c5 {[%emt 0:01:01] E11: Bogo-Indian.} 8. cxd5 {[%emt 0:09:55]} cxd4 {[%emt 0:01:23]} 9. Nxd4 {[%emt 0:05:00]} Qb6 {[%emt 0:02:26]} 10. Nf3 {[%emt 0:04:50]} (10. e3 $5 {[%cal Rd5e6]}) 10... Nxd5 {[%emt 0:09:19]} 11. O-O {[%emt 0:03:25]} Nc6 {[%emt 0:11:56] [#]} 12. Nc3 $146 {[%emt 0:06:09]} (12. e4 $16 Nf6 13. Be3 (13. e5 Nd5 $14)) ({Predecessor:} 12. e4 Nde7 13. Be3 Qa6 14. Rd1 Ng6 15. Bf1 b5 16. Nc3 Bxc3 17. Qxc3 Qb7 18. Qc5 Nb4 19. Nd4 Bd7 20. Nxb5 Na6 21. Qb6 {1-0 Staniszewski,P (2446)-Grycel,K (2290) POL-chT 1st League 2003 (7)}) 12... Bxc3 {[%emt 0:04:20]} (12... h6 $11) 13. Bxc3 {[%emt 0:01:39]} ({Better is} 13. bxc3 $16 Qc7 14. Rab1) 13... Nxc3 $11 {[%emt 0:00:18]} 14. Qxc3 {[%emt 0:00:57]} Bd7 {[%emt 0:03:16]} 15. Rfd1 {[%emt 0:04:10]} Rfd8 {[%emt 0:02:04]} 16. Ne5 {[%emt 0:13:45]} Nxe5 {[%emt 0:05:10]} 17. Qxe5 {[%emt 0:00:26]} Bc6 {[%emt 0:03:51]} 18. Bxc6 {[%emt 0:02:37]} bxc6 {[%emt 0:00:14]} 19. Rac1 {[%emt 0:10:19]} Rd5 {[%emt 0:09:08]} 20. Qc3 {[%emt 0:04:16]} Rad8 {[%emt 0:01:51]} 21. Rxd5 {[%emt 0:00:28]} cxd5 $14 {[%emt 0:00:26][%mdl 4096] Endgame KQR-KQR} 22. e3 {[%emt 0:05:00]} h6 {[%emt 0:01:49] The position is equal.} 23. b3 {[%emt 0:02:54]} d4 {[%emt 0:02:51]} 24. exd4 {[%emt 0:00:21]} Rxd4 {[%emt 0:00:06]} 25. Qc5 {[%emt 0:03:14]} Rd1+ {[%emt 0:01:36][%mdl 64] [#] Deflection} 26. Kg2 $1 {[%emt 0:00:06]} Qb7+ {[%emt 0:00:19]} 27. Qc6 {[%emt 0:00:45]} Qxc6+ {[%emt 0:00:42]} 28. Rxc6 $11 {[%emt 0:00:02] KR-KR} Rd2 {[%emt 0:00:21]} 29. a4 {[%emt 0:01:33]} Rb2 {[%emt 0:00:31]} 30. Rc8+ {[%emt 0:01:39]} Kh7 {[%emt 0:00:03]} 31. Ra8 {[%emt 0:00:10]} Rxb3 {[%emt 0:00:37]} 32. Rxa5 {[%emt 0:00:36]} Ra3 {[%emt 0:00:12]} 33. Ra7 {[%emt 0:00:21]} Kg6 {[%emt 0:01:00]} 34. a5 {[%emt 0:00:07]} Kf6 {[%emt 0:01:57]} 35. a6 {[%emt 0:00:38]} g6 {[%emt 0:03:15]} 36. h4 {[%emt 0:01:40]} h5 {[%emt 0:03:11]} 37. Ra8 {[%emt 0:01:13]} Ke5 {[%emt 0:10:55]} 38. Kg1 {[%emt 0:05:25] Weighted Error Value: White=0.12 (very precise) /Black=0.14 (very precise)} ({Of course not} 38. a7 Ke4 39. Rb8 Rxa7 40. Rb4+ Kd5 $17) 1/2-1/2

[Event "CZE-ch U14 Open 2023"]
[Site "Teplice"]
[Date "2023.03.14"]
[Round "5.8"]
[White "Zrubek, Dan"]
[Black "Vlcek, Vojtech"]
[Result "1-0"]
[ECO "B56"]
[WhiteElo "1752"]
[BlackElo "1671"]
[Annotator "NA RC COMBH"]
[PlyCount "59"]
[EventDate "2023.03.09"]
[EventType "swiss"]
[EventCountry "CZE"]
[SourceTitle "playchess.com"]
[Source "ChessBase"]
[SourceQuality "1"]
[TimeControl "40/5400+30:1800+30"]

1. e4 {[%emt 0:00:02]} c5 {[%emt 0:00:05]} 2. Nf3 {[%emt 0:00:05]} d6 {[%emt 0:00:05]} 3. d4 {[%emt 0:00:05]} cxd4 {[%emt 0:00:04]} 4. Nxd4 {[%emt 0:00:04]} Nf6 {[%emt 0:00:08]} 5. Nc3 {[%emt 0:00:06]} Nc6 {[%emt 0:00:07]} 6. Be3 {[%emt 0:05:08]} e5 {[%emt 0:01:36]} 7. Ndb5 {[%emt 0:06:30]} a6 {[%emt 0:01:03]} 8. Na3 {[%emt 0:00:10]} b5 {[%emt 0:01:29]} 9. Nd5 {[%emt 0:01:49]} Nxd5 10. Qxd5 {[%emt 0:15:45]} Qc7 {[%emt 0:11:31]} 11. Qd2 {[%emt 0:02:18]} Be6 {[%emt 0:03:40]} 12. Nb1 {[%emt 0:07:26]} Be7 {[%emt 0:13:36]} 13. Nc3 {[%emt 0:01:39]} O-O {[%emt 0:03:58]} 14. Be2 {[%emt 0:02:47]} Rfd8 {[%emt 0:08:34]} 15. Nd5 {[%emt 0:03:39]} Bxd5 {[%emt 0:00:40]} 16. exd5 {[%emt 0:00:18]} Nb8 {[%emt 0:02:03]} 17. Rc1 {[%emt 0:02:47]} f5 {[%emt 0:03:11]} 18. f4 {[%emt 0:03:17]} e4 {[%emt 0:12:10]} 19. b3 {[%emt 0:03:23]} Nd7 {[%emt 0:02:50]} 20. O-O {[%emt 0:10:25]} Qb7 {[%emt 0:06:26]} 21. c4 {[%emt 0:01:44]} b4 {[%emt 0:01:23]} 22. Kh1 {[%emt 0:05:09]} Nf6 {[%emt 0:01:52]} 23. Bd4 {[%emt 0:01:30]} g6 {[%emt 0:01:55]} 24. g4 {[%emt 0:06:37]} Kf7 {[%emt 0:01:17]} 25. Rg1 {[%emt 0:02:00]} Rg8 {[%emt 0:01:11]} 26. gxf5 {[%emt 0:01:30]} gxf5 {[%emt 0:00:07]} 27. Rg5 {[%emt 0:00:13]} Rxg5 {[%emt 0:05:11]} 28. fxg5 {[%emt 0:00:08]} Nd7 {[%emt 0:01:46]} 29. Qf4 {[%emt 0:02:13]} Kg6 {[%emt 0:03:53]} 30. Qh4 {[%emt 0:10:34]} 1-0

[Event "CZE-ch U14 Open 2023"]
[Site "Teplice"]
[Date "2023.03.14"]
[Round "5.9"]
[White "Soucek, Andrej"]
[Black "Roubal, Matyas"]
[Result "0-1"]
[ECO "A16"]
[WhiteElo "1679"]
[BlackElo "1948"]
[Annotator "TA"]
[PlyCount "64"]
[EventDate "2023.03.09"]
[EventType "swiss"]
[EventCountry "CZE"]
[SourceTitle "playchess.com"]
[Source "ChessBase"]
[SourceQuality "1"]
[TimeControl "40/5400+30:1800+30"]

{[%evp 20,64,19,31,25,-39,23,-14,41,0,35,37,46,47,139,135,133,-65,-56,-70,-66,-260,-244,-339,-302,-332,-298,-330,-325,-330,-327,-319,-290,-619,-612,-606,-606,-600,-600,-573,-564,-506,-291,-492,-417,-388,-267]} 1. c4 {[%emt 0:00:04]} Nf6 {[%emt 0:00:12]} 2. Nc3 {[%emt 0:00:10]} g6 {[%emt 0:00:17]} 3. g3 {[%emt 0:00:09]} Bg7 {[%emt 0:00:07]} 4. Bg2 {[%emt 0:00:09]} O-O {[%emt 0:00:08]} 5. e4 {[%emt 0:00:09]} d6 {[%emt 0:02:12]} 6. Nge2 {[%emt 0:00:27]} e5 {[%emt 0:02:43]} 7. O-O {[%emt 0:01:15]} Nfd7 {[%emt 0:05:46]} 8. f4 {[%emt 0:14:38]} f5 {[%emt 0:00:45]} 9. d3 {[%emt 0:06:34]} Nc6 {[%emt 0:09:04]} 10. Be3 {[%emt 0:09:16]} Nf6 {[%emt 0:07:23]} 11. h3 {[%emt 0:02:20]} Be6 {[%emt 0:02:33] A26: English Opening vs King's Indian with ...Nc6 and d3.} 12. Kh2 {[%emt 0:02:31]} (12. Nd5 $11) 12... Qd7 {[%emt 0:02:21]} (12... fxe4 $15 13. Nxe4 Nxe4 14. Bxe4 Qd7) 13. Rc1 {[%emt 0:05:55] [#]} Rad8 $146 {[%emt 0:04:47]} (13... fxe4 $11 14. Nxe4 Nxe4 15. dxe4 a5) ({Predecessor:} 13... h6 14. Qd2 Kh7 15. a3 a5 16. b3 Rae8 17. Qc2 Ng8 18. Bg1 Nge7 19. Nb5 Nd8 {0-1 Encina,A (1801)-Perez,H (2154) PAR-ch sf Asuncion 2019 (4)}) 14. Qd2 {[%emt 0:05:58]} b6 {[%emt 0:04:56]} 15. Nd5 {[%emt 0:06:07]} Ne7 {[%emt 0:02:20]} 16. b4 {[%emt 0:01:11]} c6 {[%emt 0:02:13]} (16... Rf7 $14) 17. Nxe7+ $16 {[%emt 0:00:23]} Qxe7 {[%emt 0:00:02]} 18. c5 $2 {[%emt 0:07:09]} (18. exf5 $16 Bd7 19. fxe5 dxe5 20. fxg6) 18... dxc5 $1 $15 {[%emt 0:00:48]} 19. fxe5 {[%emt 0:00:42]} Nxe4 {[%emt 0:00:37] Black is more active.} 20. Bxe4 {[%emt 0:02:58] White does not recover from this.} (20. Qc2 $15 Nxg3 21. Nxg3) 20... fxe4 $19 {[%emt 0:00:05][%cal Bf5e4,Be4d3,Bd3e2][%mdl 32]} 21. Bg5 {[%emt 0:01:17] White is weak on the light squares} Rxd3 {[%emt 0:07:22]} 22. Qxd3 {[%emt 0:03:39]} exd3 {[%emt 0:00:02]} (22... Qxg5 23. Rxf8+ Bxf8 24. Qxe4 $15) 23. Bxe7 {[%emt 0:00:10] [#] Nf4 is the strong threat.} Rxf1 {[%emt 0:01:55]} (23... dxe2 24. Rxf8+ Bxf8 25. Bxf8 Kxf8 26. bxc5 $11) 24. Rxf1 {[%emt 0:00:17] Strongly threatening Nf4.} dxe2 {[%emt 0:00:03][%mdl 4096] Endgame KRB-KB} 25. Re1 {[%emt 0:11:05]} Bc4 {[%emt 0:00:07]} ({Weaker is} 25... Bxa2 26. Rxe2 Bc4 27. Rc2 $17) 26. Bd6 {[%emt 0:15:06]} (26. bxc5 Bxe5 27. cxb6 axb6 28. Kg2) 26... Bh6 {[%emt 0:02:13] [#] Threatens to win with ...Bd2.} ({Stronger than} 26... Bxa2 27. Rxe2 Be6 28. bxc5 $15) 27. Kg2 {[%emt 0:00:04]} Bd2 {[%emt 0:00:08]} ({Not} 27... Bxa2 28. Rxe2 Bc4 29. Rf2 $17) 28. Kf2 {[%emt 0:00:02]} Bxe1+ {[%emt 0:01:52]} 29. Kxe1 {[%emt 0:00:02]} cxb4 {[%emt 0:00:13]} 30. Bxb4 {[%emt 0:00:11]} Kf7 {[%emt 0:00:07]} 31. Kf2 $2 {[%emt 0:05:16]} (31. a3 {only move.}) 31... Ke6 {[%emt 0:00:06]} 32. Bc3 {[%emt 0:00:21]} c5 {[%emt 0:00:57] Weighted Error Value: White=0.70/Black=0.32} 0-1

[Event "CZE-ch U14 Open 2023"]
[Site "Teplice"]
[Date "2023.03.14"]
[Round "5.10"]
[White "Veverka, Vladimir"]
[Black "Hobza, Richard"]
[Result "1/2-1/2"]
[ECO "D35"]
[WhiteElo "1735"]
[BlackElo "1702"]
[Annotator "NA RC COMBH"]
[PlyCount "71"]
[EventDate "2023.03.09"]
[EventType "swiss"]
[EventCountry "CZE"]
[SourceTitle "playchess.com"]
[Source "ChessBase"]
[SourceQuality "1"]
[TimeControl "40/5400+30:1800+30"]

1. d4 {[%emt 0:00:20]} d5 {[%emt 0:00:07]} 2. c4 {[%emt 0:00:10]} e6 {[%emt 0:00:04]} 3. Nc3 {[%emt 0:00:10]} Nf6 {[%emt 0:00:18]} 4. cxd5 {[%emt 0:00:12]} exd5 {[%emt 0:00:28]} 5. Bg5 {[%emt 0:00:19]} Nbd7 {[%emt 0:02:21]} 6. e3 {[%emt 0:00:38]} c6 {[%emt 0:00:19]} 7. Qc2 {[%emt 0:00:37]} Be7 {[%emt 0:01:09]} 8. Bd3 {[%emt 0:00:24]} h6 {[%emt 0:02:52]} 9. Bf4 {[%emt 0:00:39]} Nb6 {[%emt 0:02:25]} 10. Nf3 {[%emt 0:01:23]} O-O {[%emt 0:02:38]} 11. O-O {[%emt 0:01:17]} Bd6 {[%emt 0:04:53]} 12. Bxd6 {[%emt 0:02:41]} Qxd6 {[%emt 0:00:09]} 13. Rab1 {[%emt 0:01:17]} Bg4 {[%emt 0:18:17]} 14. Ne5 {[%emt 0:04:50]} Nbd7 {[%emt 0:03:21]} 15. h3 {[%emt 0:04:03]} Nxe5 {[%emt 0:08:28]} 16. dxe5 {[%emt 0:00:50]} Qxe5 {[%emt 0:00:08]} 17. hxg4 {[%emt 0:01:02]} Nxg4 {[%emt 0:00:06]} 18. g3 {[%emt 0:10:32]} Qh5 {[%emt 0:00:25]} 19. Rfe1 {[%emt 0:06:15]} Qh2+ {[%emt 0:01:51]} 20. Kf1 {[%emt 0:00:16]} Rae8 {[%emt 0:02:05]} 21. Bf5 {[%emt 0:04:29]} Ne5 {[%emt 0:05:58]} 22. f4 {[%emt 0:25:26]} Qh1+ {[%emt 0:03:30]} 23. Kf2 {[%emt 0:01:39]} Ng4+ {[%emt 0:00:14]} 24. Ke2 {[%emt 0:01:16]} Rxe3+ {[%emt 0:00:15]} 25. Kd2 {[%emt 0:00:44]} Qg2+ {[%emt 0:02:21]} 26. Ne2 {[%emt 0:01:34]} d4 {[%emt 0:09:47]} 27. Bxg4 {[%emt 0:02:37]} Rfe8 {[%emt 0:06:06]} 28. Qc5 {[%emt 0:06:05]} d3 {[%emt 0:04:44]} 29. Qxe3 {[%emt 0:00:46]} Rxe3 {[%emt 0:00:06]} 30. Kxe3 {[%emt 0:00:09]} dxe2 {[%emt 0:00:08]} 31. Rxe2 {[%emt 0:00:52]} Qxg3+ {[%emt 0:00:10]} 32. Bf3 {[%emt 0:00:07]} g5 {[%emt 0:01:10]} 33. fxg5 {[%emt 0:00:34]} hxg5 {[%emt 0:00:18]} 34. Rg2 {[%emt 0:06:34]} Qf4+ {[%emt 0:01:51]} 35. Ke2 {[%emt 0:03:01]} Qc4+ {[%emt 0:00:23]} 36. Ke3 1/2-1/2

[Event "CZE-ch U14 Open 2023"]
[Site "Teplice"]
[Date "2023.03.14"]
[Round "5.11"]
[White "Tichy, Tomas"]
[Black "Dusanek, Michal"]
[Result "1/2-1/2"]
[ECO "B52"]
[WhiteElo "1810"]
[BlackElo "1624"]
[Annotator "NA RC COMBH"]
[PlyCount "75"]
[EventDate "2023.03.09"]
[EventType "swiss"]
[EventCountry "CZE"]
[SourceTitle "playchess.com"]
[Source "ChessBase"]
[SourceQuality "1"]
[TimeControl "40/5400+30:1800+30"]

1. e4 {[%emt 0:00:23]} c5 {[%emt 0:00:27]} 2. Nf3 {[%emt 0:00:06]} d6 {[%emt 0:01:07]} 3. Bb5+ {[%emt 0:00:06]} Bd7 {[%emt 0:01:36]} 4. Bxd7+ {[%emt 0:00:05]} Qxd7 {[%emt 0:01:34]} 5. O-O {[%emt 0:00:12]} Nc6 {[%emt 0:01:35]} 6. c3 {[%emt 0:00:08]} Nf6 {[%emt 0:03:30]} 7. d4 {[%emt 0:00:06]} Nxe4 {[%emt 0:13:35]} 8. d5 {[%emt 0:00:18]} Nb8 {[%emt 0:08:44]} 9. Re1 {[%emt 0:02:25]} Nf6 {[%emt 0:00:28]} 10. Bg5 {[%emt 0:02:04]} Na6 {[%emt 0:02:44]} 11. c4 {[%emt 0:04:52]} O-O-O {[%emt 0:06:02]} 12. Nc3 {[%emt 0:03:47]} e5 {[%emt 0:17:50]} 13. a3 {[%emt 0:08:09]} h6 {[%emt 0:04:26]} 14. Be3 {[%emt 0:03:31]} Ng4 {[%emt 0:01:11]} 15. b4 {[%emt 0:04:39]} Nxe3 {[%emt 0:02:47]} 16. Rxe3 {[%emt 0:02:13]} b6 {[%emt 0:06:33]} 17. b5 {[%emt 0:05:44]} Nb8 {[%emt 0:03:20]} 18. a4 {[%emt 0:01:39]} Qb7 {[%emt 0:05:40]} 19. a5 {[%emt 0:04:07]} Kd7 {[%emt 0:02:03]} 20. axb6 {[%emt 0:06:37]} axb6 {[%emt 0:00:15]} 21. Ra2 {[%emt 0:08:13]} Rc8 {[%emt 0:01:44]} 22. Ne2 {[%emt 0:11:34]} Be7 {[%emt 0:02:38]} 23. Qa1 {[%emt 0:01:44]} Rc7 {[%emt 0:00:22]} 24. Ng3 {[%emt 0:02:31]} Bf6 {[%emt 0:02:16]} 25. Ne4 {[%emt 0:01:30]} Rd8 {[%emt 0:02:53]} 26. Nxf6+ {[%emt 0:03:34]} gxf6 {[%emt 0:00:02]} 27. Rea3 {[%emt 0:02:05]} Ke8 {[%emt 0:01:51]} 28. Qc1 {[%emt 0:01:37]} Qc8 {[%emt 0:02:14]} 29. Qxh6 {[%emt 0:00:58]} Qf5 {[%emt 0:00:54]} 30. h3 {[%emt 0:01:41]} Nd7 {[%emt 0:01:05]} 31. Ra8 {[%emt 0:02:28]} Rcc8 {[%emt 0:01:36]} 32. Rxc8 {[%emt 0:02:05]} Rxc8 {[%emt 0:00:11]} 33. Qh8+ {[%emt 0:01:05]} Ke7 {[%emt 0:00:31]} 34. Qxc8 {[%emt 0:00:08]} Qb1+ {[%emt 0:00:06]} 35. Kh2 {[%emt 0:00:06]} Qxa2 {[%emt 0:00:06]} 36. Nh4 {[%emt 0:01:23]} Qxf2 {[%emt 0:00:23]} 37. Qh8 {[%emt 0:04:02]} Qf4+ {[%emt 0:01:54]} 38. Kg1 {[%emt 0:05:28]} 1/2-1/2